[Event "SVK-ch Open 2018"]
[Site "Banska Stiavnica"]
[Date "2018.07.07"]
[Round "1"]
[White "Rezak, Milan"]
[Black "Bokros, Albert"]
[Result "0-1"]
[ECO "B22"]
[WhiteElo "1928"]
[BlackElo "2483"]
[Annotator "ChessBase"]
[PlyCount "78"]
[EventDate "2018.07.07"]
[EventType "swiss"]
[EventCountry "SVK"]
[SourceTitle "playchess.com"]
[Source "ChessBase"]
[SourceQuality "1"]
[TimeControl "40/5400+30:1800+30"]

1. e4 {[%emt 0:00:00]} c5 {[%emt 0:00:00]} 2. c3 {[%emt 0:00:00]} Nf6 {[%emt 0:00:04]} 3. e5 {[%emt 0:00:03]} Nd5 {[%emt 0:00:05]} 4. d4 {[%emt 0:00:31]} cxd4 {[%emt 0:00:05]} 5. cxd4 {[%emt 0:00:05]} e6 {[%emt 0:00:18]} 6. Nf3 {[%emt 0:00:27]} d6 {[%emt 0:00:05]} 7. Nc3 {[%emt 0:00:25]} Nxc3 {[%emt 0:00:07]} 8. bxc3 {[%emt 0:00:06]} Qc7 {[%emt 0:00:07]} 9. Bd2 {[%emt 0:00:48]} Nd7 {[%emt 0:00:14]} 10. Bb5 {[%emt 0:07:24]} a6 {[%emt 0:03:12]} 11. Bxd7+ {[%emt 0:05:36]} Bxd7 {[%emt 0:00:09]} 12. O-O {[%emt 0:00:11]} Rc8 {[%emt 0:02:19]} 13. Rc1 {[%emt 0:01:43]} Bb5 {[%emt 0:04:17]} 14. Re1 {[%emt 0:01:31]} d5 {[%emt 0:00:33]} 15. Qc2 {[%emt 0:11:49]} h6 {[%emt 0:01:48]} 16. a4 {[%emt 0:09:08]} Bd7 {[%emt 0:02:56]} 17. Nh4 {[%emt 0:03:45]} Qc4 {[%emt 0:04:03]} 18. f4 {[%emt 0:05:03]} Be7 {[%emt 0:05:34]} 19. Nf3 {[%emt 0:08:37]} Bxa4 {[%emt 0:01:10]} 20. Qb1 {[%emt 0:00:14]} Bb5 {[%emt 0:00:54]} 21. Re3 {[%emt 0:02:49]} g6 {[%emt 0:03:50]} 22. g4 {[%emt 0:00:41]} h5 {[%emt 0:01:30]} 23. g5 {[%emt 0:15:49]} a5 {[%emt 0:03:44]} 24. Nh4 {[%emt 0:09:03]} Rg8 {[%emt 0:01:51]} 25. Rg3 {[%emt 0:05:39]} a4 {[%emt 0:01:01]} 26. Ng2 {[%emt 0:01:32]} a3 {[%emt 0:03:07]} 27. Ne3 {[%emt 0:00:28]} Qa4 {[%emt 0:00:08]} 28. Rc2 {[%emt 0:05:40]} Kf8 {[%emt 0:02:53]} 29. Ra2 {[%emt 0:02:27]} Kg7 {[%emt 0:02:04]} 30. f5 {[%emt 0:01:14]} gxf5 {[%emt 0:01:21]} 31. Nxf5+ {[%emt 0:00:06]} exf5 {[%emt 0:00:11]} 32. Qxf5 {[%emt 0:00:05]} Qd1+ {[%emt 0:00:49]} 33. Kg2 {[%emt 0:00:16]} Qe2+ {[%emt 0:00:42]} 34. Kg1 {[%emt 0:00:17]} Qe4 {[%emt 0:00:32]} 35. Qf2 {[%emt 0:00:41]} Rc6 {[%emt 0:01:16]} 36. Rf3 {[%emt 0:01:46]} Rf8 {[%emt 0:00:11]} 37. Rf4 {[%emt 0:00:22]} Qb1+ {[%emt 0:00:21]} 38. Kg2 {[%emt 0:00:20]} Qxa2 {[%emt 0:00:27]} 39. g6 {[%emt 0:00:10]} Rxg6+ {[%emt 0:00:12]} 0-1

[Event "SVK-ch Open 2018"]
[Site "Banska Stiavnica"]
[Date "2018.07.07"]
[Round "1"]
[White "Kucera, Michal"]
[Black "Talla, Vladimir"]
[Result "1/2-1/2"]
[ECO "B90"]
[WhiteElo "1921"]
[BlackElo "2402"]
[Annotator "NA"]
[PlyCount "135"]
[EventDate "2018.07.07"]
[EventType "swiss"]
[EventCountry "SVK"]
[SourceTitle "playchess.com"]
[Source "ChessBase"]
[SourceQuality "1"]
[TimeControl "40/5400+30:1800+30"]

1. e4 {[%emt 0:00:00]} c5 {[%emt 0:00:54]} 2. Nf3 {[%emt 0:00:00]} d6 {[%emt 0:00:07]} 3. d4 {[%emt 0:00:03]} cxd4 {[%emt 0:00:10]} 4. Nxd4 {[%emt 0:00:11]} Nf6 {[%emt 0:00:05]} 5. Nc3 {[%emt 0:00:11]} a6 {[%emt 0:01:03]} 6. Be3 {[%emt 0:01:41]} e5 {[%emt 0:00:06]} 7. Nb3 {[%emt 0:00:56]} Be7 {[%emt 0:00:05]} 8. Be2 {[%emt 0:03:59]} O-O {[%emt 0:00:41]} 9. O-O {[%emt 0:00:34]} Be6 {[%emt 0:00:18]} 10. f4 {[%emt 0:09:10]} exf4 {[%emt 0:09:57]} 11. Bxf4 {[%emt 0:02:56]} Nc6 {[%emt 0:00:03]} 12. Kh1 {[%emt 0:03:40]} Ne8 {[%emt 0:11:43]} 13. Be3 {[%emt 0:05:01]} Bf6 {[%emt 0:03:04]} 14. Nd4 {[%emt 0:07:22]} Nxd4 {[%emt 0:07:24]} 15. Bxd4 {[%emt 0:00:13]} Be5 {[%emt 0:00:02]} 16. Bxe5 {[%emt 0:09:20]} dxe5 {[%emt 0:00:06]} 17. Qxd8 {[%emt 0:02:53]} Rxd8 {[%emt 0:00:03]} 18. Rad1 {[%emt 0:01:11]} Nf6 {[%emt 0:03:06]} 19. Rxd8 {[%emt 0:05:30]} Rxd8 {[%emt 0:00:02]} 20. Rd1 {[%emt 0:00:30]} Rd4 {[%emt 0:00:07]} 21. Bf3 {[%emt 0:03:46]} Kf8 {[%emt 0:00:43]} 22. Rxd4 {[%emt 0:02:14]} exd4 {[%emt 0:00:05]} 23. Ne2 {[%emt 0:00:05]} d3 {[%emt 0:03:00]} 24. cxd3 {[%emt 0:04:58]} Bxa2 {[%emt 0:00:05]} 25. Kg1 {[%emt 0:01:51]} b6 {[%emt 0:12:57]} 26. Kf2 {[%emt 0:00:44]} Ke7 {[%emt 0:01:45]} 27. Ke3 {[%emt 0:00:53]} Ne8 {[%emt 0:01:42]} 28. d4 f6 {[%emt 0:04:06]} 29. Nc3 {[%emt 0:06:11]} Bb3 30. Nb1 Nd6 {[%emt 0:16:18]} 31. Nd2 {[%emt 0:03:10]} Nc4+ {[%emt 0:00:12]} 32. Nxc4 {[%emt 0:00:55]} Bxc4 {[%emt 0:00:03]} 33. d5 {[%emt 0:00:38]} Kd6 {[%emt 0:02:32]} 34. Kd4 {[%emt 0:00:12]} Bb5 {[%emt 0:01:26]} 35. Bg4 {[%emt 0:02:45]} a5 {[%emt 0:00:21]} 36. Be6 {[%emt 0:01:19]} Be8 {[%emt 0:00:50]} 37. Bg8 {[%emt 0:00:26]} h6 {[%emt 0:04:11]} 38. Be6 {[%emt 0:01:17]} a4 {[%emt 0:04:03]} 39. Bg4 {[%emt 0:01:01]} b5 {[%emt 0:01:33]} 40. Be2 {[%emt 0:01:59]} h5 {[%emt 0:07:33]} 41. h4 {[%emt 0:30:25]} b4 {[%emt 0:35:43]} 42. Kc4 {[%emt 0:05:50]} a3 {[%emt 0:00:06]} 43. bxa3 {[%emt 0:00:17]} bxa3 {[%emt 0:00:06]} 44. Kb3 {[%emt 0:00:44]} Ke5 {[%emt 0:02:32]} 45. Bf3 {[%emt 0:00:00]} Kf4 {[%emt 0:00:00]} 46. d6 {[%emt 0:00:00]} g6 {[%emt 0:00:00]} 47. Kxa3 {[%emt 0:00:00]} Ke5 {[%emt 0:00:00]} 48. Kb4 {[%emt 0:00:00]} Kxd6 {[%emt 0:00:00]} 49. Kc4 {[%emt 0:00:00]} Ke5 {[%emt 0:00:00]} 50. g3 {[%emt 0:00:00]} Bc6 {[%emt 0:00:00]} 51. Kd3 {[%emt 0:03:07]} f5 {[%emt 0:00:00]} 52. Ke3 {[%emt 0:01:01]} fxe4 {[%emt 0:00:00]} 53. Be2 {[%emt 0:00:20]} Kf5 {[%emt 0:00:00]} 54. Bd1 {[%emt 0:02:21]} Be8 {[%emt 0:00:00]} 55. Be2 {[%emt 0:00:16]} Ba4 {[%emt 0:00:00]} 56. Kf2 {[%emt 0:00:36]} Bc2 {[%emt 0:00:00]} 57. Ke3 {[%emt 0:00:11]} Bd3 {[%emt 0:00:00]} 58. Bd1 {[%emt 0:00:15]} Ke5 {[%emt 0:00:00]} 59. g4 {[%emt 0:00:18]} g5 {[%emt 0:00:00]} 60. gxh5 gxh4 {[%emt 0:00:00]} 61. Bg4 {[%emt 0:03:45]} Kf6 {[%emt 0:00:00]} 62. Kf4 {[%emt 0:00:22]} Kg7 {[%emt 0:00:00]} 63. Bf5 {[%emt 0:00:39]} Kh6 {[%emt 0:00:00]} 64. Bxe4 {[%emt 0:00:16]} Bxe4 {[%emt 0:00:00]} 65. Kxe4 {[%emt 0:00:04]} Kxh5 {[%emt 0:00:00]} 66. Kf3 {[%emt 0:00:05]} h3 {[%emt 0:00:00]} 67. Kg3 {[%emt 0:00:04]} h2 {[%emt 0:00:00]} 68. Kxh2 {[%emt 0:00:03]} 1/2-1/2

[Event "SVK-ch Open 2018"]
[Site "Banska Stiavnica"]
[Date "2018.07.07"]
[Round "1"]
[White "Gresova, Zuzana"]
[Black "Urhegyi, Marton"]
[Result "0-1"]
[ECO "D15"]
[WhiteElo "1920"]
[BlackElo "2303"]
[Annotator "NA"]
[PlyCount "68"]
[EventDate "2018.07.07"]
[EventType "swiss"]
[EventCountry "SVK"]
[SourceTitle "playchess.com"]
[Source "ChessBase"]
[SourceQuality "1"]
[TimeControl "40/5400+30:1800+30"]

1. d4 {[%emt 0:00:00]} d5 {[%emt 0:00:03]} 2. c4 {[%emt 0:00:00]} c6 {[%emt 0:00:03]} 3. Nf3 {[%emt 0:00:44]} Nf6 {[%emt 0:00:06]} 4. Nc3 {[%emt 0:01:10]} a6 {[%emt 0:00:08]} 5. e3 {[%emt 0:00:40]} Bf5 {[%emt 0:01:27]} 6. Qb3 {[%emt 0:04:11]} b5 {[%emt 0:01:26]} 7. cxd5 {[%emt 0:01:51]} cxd5 {[%emt 0:00:57]} 8. Ne5 {[%emt 0:02:32]} e6 {[%emt 0:02:36]} 9. Be2 {[%emt 0:02:20]} Bd6 {[%emt 0:04:35]} 10. f4 {[%emt 0:03:28]} Ne4 {[%emt 0:06:24]} 11. O-O {[%emt 0:05:33]} f6 {[%emt 0:03:09]} 12. Nd3 {[%emt 0:04:40]} Nc6 {[%emt 0:04:48]} 13. Qd1 {[%emt 0:04:49]} Nxc3 {[%emt 0:04:16]} 14. bxc3 {[%emt 0:00:26]} Na5 {[%emt 0:05:28]} 15. Nb4 {[%emt 0:07:42]} O-O {[%emt 0:05:03]} 16. Bf3 {[%emt 0:03:31]} Qc7 {[%emt 0:06:22]} 17. Bd2 {[%emt 0:06:50]} Nc4 {[%emt 0:07:34]} 18. Rc1 {[%emt 0:09:48]} Qa5 {[%emt 0:12:46]} 19. Rf2 {[%emt 0:20:07]} Rac8 {[%emt 0:06:30]} 20. g4 {[%emt 0:07:36]} Be4 {[%emt 0:01:51]} 21. Bxe4 {[%emt 0:01:44]} dxe4 {[%emt 0:00:07]} 22. f5 {[%emt 0:00:44]} exf5 {[%emt 0:01:40]} 23. gxf5 {[%emt 0:00:33]} Qa3 {[%emt 0:03:42]} 24. Nd5 {[%emt 0:03:24]} Rcd8 {[%emt 0:09:18]} 25. Nf4 {[%emt 0:02:36]} Bxf4 {[%emt 0:00:45]} 26. Rxf4 {[%emt 0:00:26]} Qxa2 {[%emt 0:05:01]} 27. Rc2 {[%emt 0:02:02]} Qb3 {[%emt 0:00:44]} 28. Bc1 {[%emt 0:00:50]} Rd5 {[%emt 0:02:41]} 29. Rff2 {[%emt 0:00:53]} Nd6 {[%emt 0:00:51]} 30. Qg4 {[%emt 0:01:21]} Rxf5 {[%emt 0:01:17]} 31. Rb2 {[%emt 0:02:00]} Qxc3 {[%emt 0:01:04]} 32. Rxf5 {[%emt 0:00:34]} Qxc1+ {[%emt 0:00:57]} 33. Rf1 {[%emt 0:00:16]} Qxb2 {[%emt 0:00:08]} 34. Qe6+ {[%emt 0:00:39]} Nf7 {[%emt 0:00:17]} 0-1

[Event "SVK-ch Open 2018"]
[Site "Banska Stiavnica"]
[Date "2018.07.07"]
[Round "1"]
[White "Stanko, Ivan"]
[Black "Vojtek, Vladimir"]
[Result "0-1"]
[ECO "B22"]
[WhiteElo "1908"]
[BlackElo "2310"]
[Annotator "NA"]
[PlyCount "136"]
[EventDate "2018.07.07"]
[EventType "swiss"]
[EventCountry "SVK"]
[SourceTitle "playchess.com"]
[Source "ChessBase"]
[SourceQuality "1"]
[TimeControl "40/5400+30:1800+30"]

1. e4 {[%emt 0:00:00]} c5 {[%emt 0:00:00]} 2. c3 {[%emt 0:00:02]} e6 {[%emt 0:01:42]} 3. d4 {[%emt 0:03:17]} d5 {[%emt 0:00:40]} 4. exd5 {[%emt 0:01:04]} exd5 {[%emt 0:00:12]} 5. Nf3 {[%emt 0:00:40]} Nf6 {[%emt 0:00:28]} 6. Bb5+ {[%emt 0:03:09]} Bd7 {[%emt 0:00:40]} 7. Bd3 {[%emt 0:01:09]} Nc6 {[%emt 0:02:21]} 8. O-O {[%emt 0:01:44]} c4 {[%emt 0:00:58]} 9. Re1+ {[%emt 0:02:29]} Be7 {[%emt 0:00:16]} 10. Bc2 {[%emt 0:00:12]} O-O {[%emt 0:00:18]} 11. Bg5 {[%emt 0:01:28]} Bg4 {[%emt 0:01:49]} 12. Nbd2 {[%emt 0:02:01]} Qc7 {[%emt 0:05:38]} 13. Qb1 {[%emt 0:03:07]} h6 {[%emt 0:01:03]} 14. Bh4 {[%emt 0:00:23]} Rfe8 {[%emt 0:07:37]} 15. h3 {[%emt 0:07:16]} Be6 {[%emt 0:05:20]} 16. Ne5 {[%emt 0:04:29]} Nd7 {[%emt 0:06:09]} 17. Bxe7 {[%emt 0:08:37]} Rxe7 {[%emt 0:00:51]} 18. f4 {[%emt 0:07:36]} Ndxe5 {[%emt 0:07:35]} 19. dxe5 {[%emt 0:02:12]} d4 {[%emt 0:01:23]} 20. cxd4 {[%emt 0:01:49]} Nxd4 {[%emt 0:02:06]} 21. Be4 {[%emt 0:02:24]} Rd8 {[%emt 0:01:08]} 22. Nf3 {[%emt 0:06:12]} Nxf3+ {[%emt 0:05:13]} 23. Bxf3 {[%emt 0:00:18]} Rd2 {[%emt 0:00:26]} 24. Kh1 {[%emt 0:03:00]} Qc5 {[%emt 0:12:50]} 25. Rd1 {[%emt 0:13:34]} Red7 {[%emt 0:02:59]} 26. Rxd2 {[%emt 0:09:54]} Rxd2 {[%emt 0:00:10]} 27. f5 {[%emt 0:03:29]} Bd5 {[%emt 0:04:02]} 28. Qe1 {[%emt 0:03:11]} Qd4 {[%emt 0:09:56]} 29. Rd1 {[%emt 0:04:14]} Rxd1 {[%emt 0:00:34]} 30. Qxd1 {[%emt 0:00:09]} Qxd1+ {[%emt 0:00:28]} 31. Bxd1 {[%emt 0:00:06]} Be4 {[%emt 0:00:39]} 32. Bf3 {[%emt 0:01:30]} Bxf5 {[%emt 0:12:00]} 33. Bxb7 {[%emt 0:00:06]} Be6 {[%emt 0:00:36]} 34. a3 {[%emt 0:00:26]} Kf8 {[%emt 0:00:04]} 35. Kg1 {[%emt 0:00:05]} Ke7 {[%emt 0:00:04]} 36. Kf2 {[%emt 0:00:30]} f6 {[%emt 0:02:15]} 37. exf6+ {[%emt 0:01:01]} Kxf6 {[%emt 0:00:01]} 38. Ke3 {[%emt 0:00:36]} Ke5 {[%emt 0:00:01]} 39. Ba6 {[%emt 0:02:49]} g5 {[%emt 0:01:22]} 40. g3 {[%emt 0:02:12]} c3 {[%emt 0:02:58]} 41. bxc3 {[%emt 0:30:22]} Bxh3 {[%emt 0:30:08]} 42. Bb7 {[%emt 0:00:36]} Be6 {[%emt 0:03:01]} 43. Bf3 {[%emt 0:00:50]} Bf7 {[%emt 0:01:11]} 44. Kd3 {[%emt 0:00:00]} h5 {[%emt 0:00:00]} 45. c4 {[%emt 0:00:00]} h4 {[%emt 0:00:00]} 46. gxh4 {[%emt 0:00:00]} gxh4 {[%emt 0:00:00]} 47. Bg2 {[%emt 0:00:00]} Bg6+ {[%emt 0:00:00]} 48. Ke3 {[%emt 0:00:00]} a5 {[%emt 0:00:00]} 49. c5 {[%emt 0:00:00]} Bf7 {[%emt 0:00:00]} 50. Kd3 {[%emt 0:00:00]} Bd5 {[%emt 0:00:00]} 51. Bh3 {[%emt 0:00:00]} Bf3 {[%emt 0:00:00]} 52. Ke3 {[%emt 0:00:00]} Bc6 {[%emt 0:00:00]} 53. Kd3 {[%emt 0:00:00]} Kd5 {[%emt 0:00:00]} 54. Kc3 {[%emt 0:00:00]} Kxc5 {[%emt 0:00:00]} 55. Bf1 {[%emt 0:00:00]} Kd5 {[%emt 0:00:00]} 56. Bh3 {[%emt 0:00:00]} Bb5 {[%emt 0:00:00]} 57. Bc8 {[%emt 0:00:00]} Ke4 {[%emt 0:00:00]} 58. Kd2 {[%emt 0:00:25]} Kf3 {[%emt 0:00:00]} 59. Bb7+ {[%emt 0:00:29]} Kf2 {[%emt 0:00:00]} 60. Bc8 {[%emt 0:00:48]} Be2 {[%emt 0:00:00]} 61. Bd7 {[%emt 0:00:49]} Bf3 {[%emt 0:00:00]} 62. Bc8 {[%emt 0:00:48]} Kg3 {[%emt 0:00:00]} 63. Ke3 {[%emt 0:00:17]} Bg4 {[%emt 0:00:00]} 64. Bb7 {[%emt 0:00:06]} h3 {[%emt 0:00:00]} 65. Bc6 {[%emt 0:00:11]} Be6 {[%emt 0:00:00]} 66. Be4 {[%emt 0:00:43]} Bc4 {[%emt 0:00:00]} 67. Bf5 {[%emt 0:01:09]} h2 {[%emt 0:00:05]} 68. Be4 {[%emt 0:00:13]} Bf1 {[%emt 0:00:05]} 0-1

[Event "SVK-ch Open 2018"]
[Site "Banska Stiavnica"]
[Date "2018.07.07"]
[Round "1"]
[White "Pereszlenyi, Gejza"]
[Black "Kantorik, Marian"]
[Result "0-1"]
[ECO "D02"]
[WhiteElo "1899"]
[BlackElo "2260"]
[Annotator "NA"]
[PlyCount "80"]
[EventDate "2018.07.07"]
[EventType "swiss"]
[EventCountry "SVK"]
[SourceTitle "playchess.com"]
[Source "ChessBase"]
[SourceQuality "1"]
[TimeControl "40/5400+30:1800+30"]

1. d4 {[%emt 0:00:00]} d5 {[%emt 0:02:57]} 2. Nf3 {[%emt 0:00:00]} e6 {[%emt 0:00:11]} 3. Bf4 {[%emt 0:00:48]} c5 {[%emt 0:00:08]} 4. e3 {[%emt 0:00:21]} Qb6 {[%emt 0:02:29]} 5. Nc3 {[%emt 0:00:01]} Nc6 {[%emt 0:01:42]} 6. Rb1 {[%emt 0:26:41]} a6 {[%emt 0:02:01]} 7. Be2 {[%emt 0:00:06]} Nf6 {[%emt 0:02:13]} 8. h3 {[%emt 0:00:56]} Bd7 {[%emt 0:03:11]} 9. O-O {[%emt 0:00:25]} cxd4 {[%emt 0:03:44]} 10. exd4 {[%emt 0:01:41]} Be7 {[%emt 0:00:38]} 11. Re1 {[%emt 0:02:10]} O-O {[%emt 0:00:23]} 12. Bf1 {[%emt 0:06:38]} Rac8 {[%emt 0:10:27]} 13. a3 {[%emt 0:02:39]} Qa7 {[%emt 0:05:51]} 14. Qd2 {[%emt 0:02:22]} b5 {[%emt 0:06:10]} 15. Ra1 {[%emt 0:02:29]} Rfd8 {[%emt 0:06:25]} 16. g4 {[%emt 0:00:34]} Be8 {[%emt 0:00:50]} 17. Bg5 {[%emt 0:09:46]} Qc7 {[%emt 0:07:44]} 18. Bd3 {[%emt 0:03:31]} Na5 {[%emt 0:03:08]} 19. Nd1 {[%emt 0:05:13]} Nc4 {[%emt 0:02:10]} 20. Qe2 {[%emt 0:00:28]} Ne4 {[%emt 0:09:03]} 21. Bxe7 {[%emt 0:00:46]} Qxe7 {[%emt 0:00:12]} 22. Bxc4 {[%emt 0:06:10]} Rxc4 {[%emt 0:03:30]} 23. Ne3 {[%emt 0:00:45]} Rcc8 {[%emt 0:00:15]} 24. c3 {[%emt 0:00:02]} f6 {[%emt 0:03:31]} 25. Kg2 {[%emt 0:03:44]} Bf7 {[%emt 0:01:05]} 26. Nd2 {[%emt 0:01:31]} Nxd2 {[%emt 0:02:50]} 27. Qxd2 {[%emt 0:00:04]} Qc7 {[%emt 0:00:50]} 28. Rad1 {[%emt 0:05:07]} a5 {[%emt 0:01:11]} 29. Rc1 {[%emt 0:01:53]} Qb6 {[%emt 0:03:34]} 30. b4 {[%emt 0:01:42]} h6 {[%emt 0:00:15]} 31. f4 {[%emt 0:02:30]} Re8 {[%emt 0:02:53]} 32. h4 {[%emt 0:01:31]} Qd6 {[%emt 0:02:12]} 33. Rf1 {[%emt 0:01:07]} Bg6 {[%emt 0:00:59]} 34. f5 {[%emt 0:00:08]} exf5 {[%emt 0:00:31]} 35. Nxf5 {[%emt 0:02:25]} Bxf5 {[%emt 0:00:40]} 36. Rxf5 {[%emt 0:03:05]} Re4 37. Kh3 {[%emt 0:03:40]} Rce8 {[%emt 0:01:45]} 38. Rcf1 {[%emt 0:00:25]} Re2 {[%emt 0:01:35]} 39. Qf4 {[%emt 0:00:26]} R8e3+ 40. Rf3 {[%emt 0:00:26]} Rxf3+ {[%emt 0:00:22]} 0-1

[Event "SVK-ch Open 2018"]
[Site "Banska Stiavnica"]
[Date "2018.07.07"]
[Round "1"]
[White "Komlosi, Frantisek"]
[Black "Molnar, Erno"]
[Result "0-1"]
[ECO "D74"]
[WhiteElo "1861"]
[BlackElo "2231"]
[Annotator "NA"]
[PlyCount "86"]
[EventDate "2018.07.07"]
[EventType "swiss"]
[EventCountry "SVK"]
[SourceTitle "playchess.com"]
[Source "ChessBase"]
[SourceQuality "1"]
[TimeControl "40/5400+30:1800+30"]

1. d4 {[%emt 0:00:00]} Nf6 {[%emt 0:00:00]} 2. c4 {[%emt 0:00:58]} g6 {[%emt 0:00:00]} 3. Nf3 {[%emt 0:00:45]} Bg7 {[%emt 0:00:00]} 4. g3 {[%emt 0:01:10]} d5 {[%emt 0:01:12]} 5. cxd5 {[%emt 0:08:21]} Nxd5 {[%emt 0:00:17]} 6. Bg2 {[%emt 0:01:33]} O-O {[%emt 0:01:34]} 7. O-O {[%emt 0:01:24]} Nc6 {[%emt 0:04:51]} 8. Na3 {[%emt 0:07:47]} Nb6 {[%emt 0:14:39]} 9. e3 {[%emt 0:09:14]} Bf5 {[%emt 0:11:35]} 10. Nh4 {[%emt 0:13:09]} Be6 {[%emt 0:02:55]} 11. Bd2 {[%emt 0:01:33]} Bd5 {[%emt 0:06:14]} 12. Bc3 {[%emt 0:04:16]} Bxg2 {[%emt 0:02:53]} 13. Nxg2 {[%emt 0:00:12]} Nd5 {[%emt 0:05:41]} 14. Qb3 {[%emt 0:07:18]} Nxc3 {[%emt 0:19:23]} 15. bxc3 {[%emt 0:03:34]} Na5 {[%emt 0:00:53]} 16. Qa4 {[%emt 0:03:37]} b6 {[%emt 0:02:22]} 17. Rab1 {[%emt 0:09:25]} e6 {[%emt 0:10:16]} 18. Rfd1 {[%emt 0:03:21]} Qe7 {[%emt 0:00:28]} 19. Nc4 {[%emt 0:07:23]} Nxc4 {[%emt 0:00:40]} 20. Qxc4 {[%emt 0:00:07]} c5 {[%emt 0:01:47]} 21. Nf4 {[%emt 0:01:34]} cxd4 {[%emt 0:00:08]} 22. cxd4 {[%emt 0:00:18]} Rfc8 {[%emt 0:02:53]} 23. Qa6 {[%emt 0:04:33]} Rc3 {[%emt 0:00:04]} 24. a4 {[%emt 0:01:19]} Rd8 {[%emt 0:01:42]} 25. Rdc1 {[%emt 0:00:46]} Ra3 {[%emt 0:01:11]} 26. Rc8 {[%emt 0:01:44]} Rf8 {[%emt 0:04:25]} 27. Rbc1 {[%emt 0:00:27]} Qd7 {[%emt 0:00:12]} 28. R8c4 {[%emt 0:01:39]} Bf6 {[%emt 0:02:16]} 29. h4 {[%emt 0:01:17]} e5 {[%emt 0:01:06]} 30. Ne2 {[%emt 0:03:53]} Kg7 {[%emt 0:01:29]} 31. Kg2 {[%emt 0:00:49]} Qd5+ {[%emt 0:00:40]} 32. Kg1 {[%emt 0:00:43]} Qd7 {[%emt 0:00:56]} 33. dxe5 {[%emt 0:00:59]} Bxe5 {[%emt 0:00:01]} 34. Nd4 {[%emt 0:00:50]} Ra2 {[%emt 0:00:35]} 35. Nc2 {[%emt 0:00:40]} Qd2 {[%emt 0:00:34]} 36. Rf1 {[%emt 0:00:39]} Rxc2 {[%emt 0:00:08]} 37. Rxc2 {[%emt 0:00:22]} Qxc2 {[%emt 0:00:02]} 38. Qxa7 {[%emt 0:00:13]} Qc7 {[%emt 0:00:31]} 39. Qa6 {[%emt 0:00:35]} Rd8 {[%emt 0:00:33]} 40. Qe2 {[%emt 0:00:30]} Qc6 {[%emt 0:01:04]} 41. Qg4 {[%emt 0:30:51]} h5 {[%emt 0:31:03]} 42. Qb4 {[%emt 0:00:00]} Ra8 {[%emt 0:00:00]} 43. Qe7 {[%emt 0:00:00]} Bf6 {[%emt 0:00:00]} 0-1

[Event "SVK-ch Open 2018"]
[Site "Banska Stiavnica"]
[Date "2018.07.07"]
[Round "1"]
[White "Malinovsky, Jozef"]
[Black "Sikora, Jan"]
[Result "0-1"]
[ECO "A17"]
[WhiteElo "1842"]
[BlackElo "2209"]
[Annotator "NA"]
[PlyCount "130"]
[EventDate "2018.07.07"]
[EventType "swiss"]
[EventCountry "SVK"]
[SourceTitle "playchess.com"]
[Source "ChessBase"]
[SourceQuality "1"]
[TimeControl "40/5400+30:1800+30"]

1. Nf3 {[%emt 0:00:00]} Nf6 {[%emt 0:00:40]} 2. c4 {[%emt 0:00:00]} e6 {[%emt 0:00:49]} 3. Nc3 {[%emt 0:00:11]} Bb4 {[%emt 0:01:16]} 4. Qc2 {[%emt 0:03:05]} O-O {[%emt 0:01:06]} 5. a3 {[%emt 0:03:15]} Bxc3 {[%emt 0:04:59]} 6. bxc3 {[%emt 0:00:19]} b6 {[%emt 0:01:54]} 7. g3 {[%emt 0:07:51]} Bb7 {[%emt 0:04:02]} 8. Bg2 {[%emt 0:00:22]} d6 {[%emt 0:06:32]} 9. O-O {[%emt 0:00:49]} Nbd7 {[%emt 0:00:34]} 10. a4 {[%emt 0:01:32]} a5 {[%emt 0:02:38]} 11. Ba3 {[%emt 0:05:42]} e5 {[%emt 0:07:25]} 12. d3 {[%emt 0:07:05]} Re8 {[%emt 0:03:08]} 13. e4 {[%emt 0:03:04]} Bc6 {[%emt 0:02:25]} 14. Rfe1 {[%emt 0:06:54]} Nf8 {[%emt 0:10:08]} 15. Bc1 {[%emt 0:07:18]} N8d7 {[%emt 0:06:04]} 16. Ba3 {[%emt 0:05:02]} Nc5 {[%emt 0:01:23]} 17. Bxc5 {[%emt 0:00:19]} bxc5 {[%emt 0:01:23]} 18. Nd2 {[%emt 0:05:44]} Nd7 {[%emt 0:02:00]} 19. Ra2 {[%emt 0:07:16]} Nb6 {[%emt 0:00:35]} 20. Rea1 {[%emt 0:00:13]} Qd7 {[%emt 0:00:45]} 21. Nf1 {[%emt 0:01:02]} Reb8 {[%emt 0:02:53]} 22. Ne3 {[%emt 0:02:03]} Rb7 {[%emt 0:01:05]} 23. Bf3 {[%emt 0:07:10]} Rab8 {[%emt 0:00:53]} 24. Kg2 {[%emt 0:00:50]} Qe8 {[%emt 0:06:11]} 25. Bd1 {[%emt 0:05:28]} Nc8 {[%emt 0:03:46]} 26. Qc1 {[%emt 0:01:46]} Ne7 {[%emt 0:01:30]} 27. Qd2 {[%emt 0:05:09]} f5 {[%emt 0:02:04]} 28. Nd5 {[%emt 0:00:55]} fxe4 {[%emt 0:08:20]} 29. dxe4 {[%emt 0:00:30]} Bd7 {[%emt 0:04:20]} 30. Qg5 {[%emt 0:00:22]} Nxd5 {[%emt 0:01:31]} 31. cxd5 {[%emt 0:02:31]} h6 {[%emt 0:01:38]} 32. Qd2 {[%emt 0:04:22]} Qg6 {[%emt 0:01:04]} 33. Qe2 {[%emt 0:00:53]} Rf8 {[%emt 0:01:31]} 34. Bc2 {[%emt 0:02:11]} Bg4 {[%emt 0:00:29]} 35. Qe1 {[%emt 0:02:34]} Bf3+ {[%emt 0:03:14]} 36. Kg1 {[%emt 0:00:25]} Qg4 {[%emt 0:02:57]} 37. Bd3 {[%emt 0:01:06]} Rfb8 {[%emt 0:00:38]} 38. Rc2 {[%emt 0:02:20]} Rb3 {[%emt 0:01:40]} 39. Rac1 {[%emt 0:00:32]} Ra3 {[%emt 0:00:42]} 40. Qf1 {[%emt 0:00:54]} Rxa4 {[%emt 0:01:53]} 41. h3 {[%emt 0:00:27]} Qg6 {[%emt 0:02:37]} 42. Re1 {[%emt 0:00:31]} c4 {[%emt 0:10:19]} 43. Bxc4 {[%emt 0:04:03]} Bxe4 {[%emt 0:00:02]} 44. Rxe4 {[%emt 0:01:21]} Qxe4 {[%emt 0:00:13]} 45. Bd3 {[%emt 0:00:17]} Qxd5 {[%emt 0:04:20]} 46. Rc1 {[%emt 0:06:05]} e4 {[%emt 0:02:59]} 47. Be2 {[%emt 0:01:37]} Qd2 {[%emt 0:00:35]} 48. Rd1 {[%emt 0:02:03]} Qxc3 {[%emt 0:01:11]} 49. Rc1 {[%emt 0:02:19]} Qd4 {[%emt 0:01:01]} 50. Rd1 {[%emt 0:00:23]} Qc5 {[%emt 0:02:07]} 51. Rc1 {[%emt 0:00:20]} Qd4 {[%emt 0:00:42]} 52. Rd1 {[%emt 0:00:46]} Qb2 {[%emt 0:00:12]} 53. Bc4+ {[%emt 0:01:25]} Kh8 {[%emt 0:00:12]} 54. Re1 {[%emt 0:02:52]} Qd4 {[%emt 0:00:19]} 55. Be6 {[%emt 0:02:02]} Qe5 {[%emt 0:05:37]} 56. Bd7 {[%emt 0:00:47]} Ra2 {[%emt 0:01:03]} 57. Qc4 {[%emt 0:02:31]} Ra1 {[%emt 0:01:35]} 58. Rxa1 {[%emt 0:04:58]} Qxa1+ {[%emt 0:00:02]} 59. Kg2 {[%emt 0:00:13]} Qe5 {[%emt 0:00:10]} 60. Qxc7 {[%emt 0:00:10]} Rf8 {[%emt 0:00:06]} 61. g4 e3 62. fxe3 {[%emt 0:05:37]} Qe4+ {[%emt 0:00:58]} 63. Kg3 {[%emt 0:00:40]} Qxe3+ {[%emt 0:01:14]} 64. Kh4 {[%emt 0:00:07]} Qf2+ {[%emt 0:00:11]} 65. Kh5 {[%emt 0:00:30]} Qf7+ {[%emt 0:00:07]} 0-1